bitfinex/quotes_ETHUSD_20240703
["timestamp","ask_amount","ask_price","bid_price","bid_amount"]
[1720024445087,0.21683805,3318.4,3316.9,3.55801582]
[1720024445379,0.03638046,3318.3,3317.0,0.06028329]
[1720024445583,0.03638046,3318.3,3317.1,0.36182991]
[1720024445780,0.03638046,3318.3,3317.2,0.06028326]
[1720024446034,0.03638046,3318.5,3317.3,3.07472326]
[1720024446723,7.4,3319.0,3317.3,3.07472326]
[1720024446724,0.03638046,3318.8,3317.7,2.357]
[1720024446883,0.03638046,3318.8,3317.8,0.59739171]
[1720024448120,8.14,3319.0,3317.8,0.59739171]
[1720024448330,3.0,3318.9,3318.0,3.01385]
[1720024448529,3.03638046,3318.9,3318.0,0.36112417]
[1720024448683,3.03638046,3318.9,3317.7,2.357]
[1720024449525,3.03638046,3318.9,3317.2,5.31621]
[1720024449819,3.03638046,3318.9,3317.2,2.3017]
[1720024450018,2.132,3318.7,3317.2,2.3017]
[1720024450222,2.132,3318.7,3317.1,0.36182991]
[1720024450223,0.30179368,3318.6,3317.1,0.36182991]
[1720024450600,0.52218016,3318.5,3317.1,0.36182991]
[1720024450925,0.03638046,3318.4,3317.1,0.36182991]
[1720024451129,0.55858687,3318.4,3317.1,0.36182991]
[1720024451308,0.03638046,3318.4,3317.1,0.36182991]
[1720024451504,0.52221204,3318.3,3316.8,5.51147]
[1720024451834,0.55861286,3318.2,3316.8,5.51147]
[1720024451985,0.03638046,3318.2,3316.8,5.51147]
[1720024452185,0.03638046,3318.2,3316.9,0.551147]
[1720024452621,3.03638046,3318.5,3317.0,0.06028622]
[1720024452813,0.52218727,3318.4,3317.0,3.07503622]
[1720024453009,0.03638046,3318.3,3317.0,3.07503622]
[1720024453213,0.34001851,3318.3,3317.1,0.36261832]
[1720024453411,0.03638046,3318.2,3317.2,0.06028191]
[1720024457698,0.52221401,3318.1,3317.2,0.06028191]
[1720024457912,0.03638046,3318.2,3316.9,3.565927]
[1720024458117,0.52221645,3318.1,3316.9,0.551147]
[1720024458440,0.52221645,3318.1,3316.6,3.01508]
[1720024458441,0.55859691,3318.0,3316.4,5.50789]
[1720024458590,0.52221645,3317.9,3316.4,5.50789]
[1720024458790,0.03638046,3317.8,3316.4,5.50789]
[1720024459013,0.52221645,3317.7,3316.1,2.4926]
[1720024459200,2.16838046,3317.6,3316.1,2.4926]
[1720024459401,0.52221645,3317.5,3316.2,0.06030145]
[1720024459650,0.03638046,3317.4,3316.3,0.25529014]
[1720024459792,0.03638046,3318.1,3316.4,0.06029445]
[1720024459991,0.52230987,3318.0,3316.6,3.01505]
[1720024460226,0.55869033,3317.9,3316.7,0.06028665]
[1720024460440,0.55869033,3317.9,3316.8,0.06028665]
[1720024460441,0.03638046,3317.9,3316.8,0.06028665]
[1720024461289,0.03638046,3318.1,3316.8,0.06028665]
[1720024461444,0.52225566,3318.0,3316.8,0.06028665]
[1720024461657,0.55863612,3317.9,3316.8,0.06028665]
[1720024461798,0.52226641,3317.8,3316.4,3.01531]
[1720024462000,0.03638046,3317.7,3316.5,3.01521]
[1720024462198,0.03638046,3318.1,3316.6,0.06029009]
[1720024462423,0.52224407,3318.0,3316.6,0.06029009]
[1720024462626,0.55862453,3317.9,3316.6,0.06029009]
[1720024462937,0.03638046,3317.9,3316.6,0.06029009]
[1720024463305,0.03638046,3317.9,3316.5,3.01521]
[1720024463636,12.532,3318.2,3316.5,3.01521]
[1720024463637,0.03638046,3318.1,3316.6,0.34077121]
[1720024463947,0.03638046,3318.1,3316.9,3.01483]
[1720024465052,0.03638046,3318.1,3317.0,0.06028315]
[1720024465205,0.03638046,3318.1,3316.9,3.01483]
[1720024465400,0.03638046,3318.1,3317.0,0.301483]
[1720024465631,0.52223467,3318.0,3317.0,0.301483]
[1720024465826,0.03638046,3317.9,3317.0,0.301483]
[1720024466028,0.03638046,3318.1,3317.0,0.301483]
[1720024466225,0.03638046,3318.1,3317.1,0.06028313]
[1720024466416,0.03638046,3318.1,3317.1,0.39794274]
[1720024466835,0.03638046,3318.1,3317.1,0.33765961]
[1720024469097,0.03638046,3318.1,3317.2,0.06028314]
[1720024469360,0.03638046,3318.1,3317.1,0.33765961]
[1720024470039,7.4,3318.2,3317.3,3.01444]
[1720024470200,7.66541322,3318.6,3317.5,3.01429]
[1720024470396,0.55853699,3318.5,3317.5,3.01429]
[1720024470600,0.52215653,3318.4,3317.5,3.01429]
[1720024470849,0.52215653,3318.4,3317.6,0.06027332]
[1720024470996,0.03638046,3318.9,3317.6,0.06027332]
[1720024471199,0.03638046,3318.9,3317.4,2.72257231]
[1720024471200,0.03638046,3318.9,3317.4,0.30747231]
[1720024471443,0.74363805,3318.8,3317.4,0.30747231]
[1720024471642,0.03638046,3318.7,3317.3,3.01448]
[1720024472438,0.03638046,3318.7,3317.4,0.06027659]
[1720024472939,0.03638046,3318.7,3317.4,3.07467659]
[1720024473142,0.03638046,3318.8,3317.5,3.01429]
[1720024473347,0.03638046,3318.8,3317.6,0.36772755]
[1720024473505,0.55855251,3318.8,3317.7,3.01411]
[1720024473700,0.55855251,3318.8,3317.8,0.06027039]
[1720024474515,0.55855251,3318.8,3317.8,2.54547039]
[1720024474726,0.55855251,3318.8,3317.9,0.55595804]
[1720024474999,0.55855251,3318.8,3318.0,0.06027003]
[1720024475484,0.52217205,3318.8,3318.0,0.06027003]
[1720024475632,0.52217205,3318.8,3317.9,0.55595804]
[1720024476473,3.03638046,3318.9,3317.9,0.55595804]
[1720024476651,4.08001851,3318.9,3317.9,0.55595804]
[1720024477127,4.08001851,3318.9,3317.9,3.56985804]
[1720024477323,7.4,3319.0,3318.0,0.06026546]
[1720024477529,0.39371447,3320.2,3318.0,0.06026546]
[1720024477530,7.46985545,3319.4,3318.3,3.01353]
[1720024477859,0.06985545,3319.4,3318.4,3.07369662]
[1720024478039,0.03638046,3319.7,3318.5,0.60872266]
[1720024478242,0.03638046,3319.7,3318.6,0.0602569]
[1720024478577,0.52198418,3319.6,3318.6,0.0602569]
[1720024478782,0.03638046,3319.5,3318.6,0.0602569]
[1720024478945,0.55836464,3319.5,3318.6,0.0602569]
[1720024479132,0.52198418,3319.4,3318.6,0.0602569]
[1720024479633,3.0,3319.7,3318.6,0.0602569]
[1720024479834,0.52198243,3319.6,3318.6,5.47637]
[1720024480070,7.4,3319.8,3318.8,3.01309]
[1720024480370,0.5583269,3319.7,3318.6,5.47637]
[1720024480572,1.14332318,3319.7,3318.6,6.38622827]
[1720024481555,4.14332318,3319.7,3318.6,6.38622827]
[1720024481768,0.52199603,3319.6,3317.9,6.06015804]
[1720024481929,0.03638046,3319.5,3318.1,3.01375]
[1720024482369,0.03638046,3319.5,3318.1,3.0137]
[1720024482717,0.03638046,3319.5,3318.4,3.01349]
[1720024482992,0.03638046,3319.5,3318.2,0.30137]
[1720024483146,0.52203032,3319.4,3318.1,3.01376]
[1720024483346,0.03638046,3319.3,3318.1,3.01376]
[1720024483587,3.0,3320.0,3318.1,3.01376]
[1720024483588,0.03638046,3319.9,3318.1,3.01376]
[1720024483792,0.82565614,3319.8,3318.2,3.58850578]
[1720024483955,0.55839855,3319.7,3318.3,0.06025974]
[1720024484156,0.03638046,3319.7,3318.3,0.06025974]
[1720024484474,0.03638046,3319.7,3318.4,0.35885057]
[1720024484778,1.04400332,3319.6,3318.5,0.06025973]
[1720024485109,1.04400332,3319.6,3317.9,2.4903]
[1720024485110,0.55840957,3319.5,3317.9,2.4903]
[1720024485253,0.52202911,3319.4,3317.9,2.4903]
[1720024485447,0.03638046,3319.3,3317.9,3.358336]
[1720024485869,0.03638046,3319.3,3317.9,2.4903]
[1720024486433,0.55845634,3319.2,3317.9,2.4903]
[1720024486589,0.03638046,3319.2,3317.9,2.4903]
[1720024486760,0.03638046,3319.2,3317.6,5.14615]
[1720024486964,0.03638046,3319.2,3317.7,1.379836]
[1720024487470,0.03638046,3319.4,3317.7,1.379836]
[1720024487791,0.03638046,3319.4,3317.6,2.132]
[1720024487792,0.52208168,3319.3,3317.6,2.132]
[1720024488004,0.55846214,3319.2,3317.6,2.132]
[1720024488293,0.52208168,3319.1,3317.6,2.132]
[1720024488496,0.03638046,3319.0,3317.6,2.132]
[1720024488702,0.52208168,3318.9,3317.6,2.90899]
[1720024488997,0.03638046,3318.8,3317.6,2.90899]
[1720024489294,0.03638046,3319.4,3317.6,2.90899]
[1720024489505,0.82575916,3319.3,3317.7,0.537089]
[1720024489721,0.55850157,3319.2,3317.7,0.537089]
[1720024489856,0.52212111,3319.1,3317.8,0.06027005]
[1720024490050,0.55850157,3319.0,3317.8,0.06027005]
[1720024490265,0.52212111,3318.9,3317.8,0.06027005]
[1720024490517,0.03638046,3318.8,3317.8,0.41090496]
[1720024490835,0.03638046,3319.2,3317.8,0.35063491]
[1720024491113,0.52210604,3319.1,3317.8,0.35063491]
[1720024491426,0.30363805,3319.3,3317.8,0.35063491]
[1720024491427,0.55848502,3319.0,3317.8,0.35063491]
[1720024491603,0.52210456,3318.9,3317.8,0.35063491]
[1720024491909,0.03638046,3318.8,3317.8,0.35063491]
[1720024492321,0.03638046,3319.2,3317.9,0.06026999]
[1720024492611,0.52210705,3319.1,3317.6,2.90899]
[1720024492806,0.55848751,3319.0,3317.7,0.537089]
[1720024492985,0.52210705,3318.9,3317.7,0.537089]
[1720024493312,0.03638046,3318.8,3317.7,0.537089]
[1720024493476,0.03638046,3318.8,3317.7,1.1278869]
[1720024493677,0.03638046,3319.2,3317.7,1.1278869]
[1720024494084,0.52210962,3319.1,3317.7,1.1278869]
[1720024494282,0.55849314,3319.0,3317.7,1.1278869]
[1720024494500,0.52211268,3318.9,3317.7,0.5907979]
[1720024494711,0.03638046,3318.8,3317.7,0.5907979]
[1720024494878,0.52211268,3318.7,3317.7,0.5907979]
[1720024495217,0.03638046,3318.6,3317.7,0.5907979]
[1720024495721,0.03638046,3319.2,3317.7,0.5907979]
[1720024496021,0.52212682,3319.1,3317.7,0.5907979]
[1720024496191,0.55850728,3319.0,3317.7,0.5907979]
[1720024496522,0.52212682,3318.9,3317.6,2.690493]
[1720024496725,0.55850728,3318.8,3317.6,2.690493]
[1720024496892,0.55850728,3318.7,3317.6,2.690493]
[1720024497232,0.30363805,3319.3,3317.6,2.690493]
[1720024497528,3.68959373,3319.2,3317.6,0.558493]
[1720024497684,3.68959373,3319.2,3317.1,2.2621]
[1720024497685,0.52212712,3319.1,3317.1,2.2621]
[1720024497885,3.52212712,3319.1,3317.1,2.2621]
[1720024498086,0.55850758,3319.0,3317.1,2.2621]
[1720024498287,0.55850758,3319.0,3317.2,1.058479]
[1720024498288,0.87797788,3318.9,3317.2,1.058479]
[1720024498613,0.55850758,3318.8,3317.2,1.058479]
[1720024498813,0.52212712,3318.7,3317.2,1.058479]
[1720024499019,0.03638046,3318.6,3317.2,1.058479]
[1720024499225,0.52212712,3318.5,3317.2,1.058479]
[1720024499435,0.03638046,3318.4,3317.3,0.3320579]
[1720024499631,0.52212712,3318.3,3317.3,0.3320579]
[1720024500400,0.35585076,3318.9,3317.3,0.3320579]
[1720024500401,0.52218847,3318.2,3317.3,0.3320579]
[1720024500634,0.03638046,3318.8,3317.3,0.3320579]
[1720024500939,0.55856974,3318.7,3317.0,2.132]
[1720024501099,0.52218928,3318.6,3317.0,2.132]
[1720024501299,0.03638046,3318.5,3317.0,2.132]
[1720024501504,0.52218928,3318.4,3317.0,2.132]
[1720024501704,0.03638046,3318.3,3317.1,0.514682]
[1720024501907,0.52218928,3318.2,3317.1,0.514682]
[1720024502144,0.03638046,3318.1,3317.1,0.514682]
[1720024502552,0.03638046,3318.8,3317.1,0.514682]
[1720024502851,0.55857934,3318.7,3317.1,0.514682]
[1720024503012,0.55857934,3318.7,3317.2,0.2646682]
[1720024503214,0.52219889,3318.6,3317.2,0.2646682]
[1720024503511,0.55857935,3318.5,3316.6,3.176]
[1720024503706,0.52219889,3318.4,3316.7,6.19096]
[1720024503968,0.03638046,3318.3,3317.0,0.522198]
[1720024504248,0.52219889,3318.2,3317.0,0.522198]
[1720024504460,0.03638046,3318.1,3317.0,0.522198]
[1720024504755,0.52219889,3318.0,3316.8,0.06028361]
[1720024504959,0.03638046,3317.9,3316.8,0.06028361]
[1720024505134,0.52219889,3317.8,3316.8,0.06028361]
[1720024505452,0.52219889,3317.8,3316.1,4.223181]
[1720024505453,0.03638046,3317.7,3316.1,4.223181]
[1720024505670,0.52219889,3317.6,3316.2,6.6138081]
[1720024505974,0.03638046,3317.7,3316.3,3.07569024]
[1720024506309,3.0,3318.6,3316.3,3.07569024]
[1720024506310,2.16838046,3318.5,3316.3,3.07569024]
[1720024506511,1.07225991,3318.4,3316.3,3.07569024]
[1720024506857,0.88270441,3318.3,3316.4,1.18214983]
[1720024507154,0.52225991,3318.2,3316.6,2.4365]
[1720024507359,0.55864037,3318.1,3316.7,0.06028619]
[1720024507644,0.52225991,3318.0,3316.8,0.46287862]
[1720024507846,0.03638046,3317.9,3316.9,0.06028615]
[1720024508065,2.132,3318.8,3316.9,0.06028615]
[1720024508066,0.03638046,3318.6,3316.9,0.06028615]
[1720024508262,2.132,3318.4,3316.9,0.06028615]
[1720024508419,0.55862655,3318.3,3316.9,0.06028615]
[1720024508621,0.52224609,3318.2,3316.9,0.06028615]
[1720024508936,0.55863088,3318.1,3316.9,0.06028615]
[1720024509141,0.52225042,3318.0,3316.9,0.06028615]
[1720024509313,0.03638046,3317.9,3316.9,0.06028615]
[1720024509516,0.03638046,3317.9,3316.8,0.46287862]
[1720024509746,0.52225674,3317.8,3316.6,2.132]
[1720024509914,3.03638046,3318.3,3316.7,0.06028626]
[1720024510132,0.55864002,3318.2,3316.7,0.06028626]
[1720024510327,0.52225956,3318.1,3316.7,0.06028626]
[1720024510688,0.55864002,3318.0,3316.7,0.06028626]
[1720024510817,0.52225956,3317.9,3316.8,0.21922863]
[1720024511018,0.55864002,3317.8,3316.9,0.06028624]
[1720024511258,0.03638046,3318.2,3316.9,0.06028624]
[1720024511516,0.52224277,3318.1,3316.9,0.06028624]
[1720024511760,0.55862323,3318.0,3316.9,0.06028624]
[1720024511964,0.03638046,3318.0,3316.9,0.06028624]
[1720024512187,0.52223798,3317.9,3316.9,0.06028624]
[1720024512460,0.03638046,3318.0,3316.9,0.06028624]
[1720024512634,0.52224676,3317.9,3316.9,0.06028624]
[1720024512816,0.03638046,3317.9,3316.9,0.06028624]
[1720024513018,0.03638046,3318.2,3316.9,0.06028624]
[1720024513224,0.52223794,3318.1,3317.0,2.3701]
[1720024513516,0.03638046,3318.2,3317.1,0.06028125]
[1720024513720,0.52220433,3318.1,3317.1,0.06028125]
[1720024513956,0.03638046,3318.0,3317.1,0.06028125]
[1720024514254,0.38806427,3318.5,3317.1,0.66950842]
[1720024514429,0.52220512,3318.4,3317.1,0.60922717]
[1720024514627,0.55858558,3318.3,3317.1,0.60922717]
[1720024514842,0.55858558,3318.2,3317.1,0.60922717]
[1720024515047,0.52220512,3318.1,3316.9,0.64705049]
[1720024515251,0.55858757,3318.0,3316.9,0.64705049]
[1720024515561,0.55858757,3318.0,3316.7,2.3737]
[1720024515562,0.52220711,3317.9,3316.7,2.3737]
[1720024515747,0.35168381,3318.5,3316.7,2.3737]
[1720024515748,0.55862541,3317.8,3316.7,2.3737]
[1720024515921,3.03638046,3318.3,3316.7,3.125782]
[1720024516119,0.55863776,3318.2,3316.7,0.752082]
[1720024516356,0.5222573,3318.1,3316.4,3.01531]
[1720024516576,0.03638046,3318.0,3316.4,3.01531]
[1720024516774,0.5222573,3317.9,3316.4,3.01531]
[1720024516975,0.03638046,3317.8,3316.4,3.01531]
[1720024517277,0.5222573,3317.7,3316.4,3.01531]
[1720024517475,0.03638046,3317.6,3316.5,0.549611]
[1720024517650,0.5222573,3317.5,3316.5,0.549611]
[1720024517854,0.03638046,3317.4,3316.5,0.549611]
[1720024518056,0.03638046,3318.2,3316.5,0.549611]
[1720024518262,0.52229435,3318.1,3316.4,3.01531]
[1720024518444,1.09958046,3318.2,3316.4,3.01531]
[1720024518445,0.55867481,3318.0,3316.4,3.01531]
[1720024518650,0.52229435,3317.9,3316.4,3.01531]
[1720024521086,0.52223336,3316.9,3315.6,0.6487046]
[1720024521283,0.03638046,3316.8,3315.6,0.6487046]
[1720024521614,0.03638046,3316.8,3315.5,2.263]
[1720024521790,0.52244793,3316.7,3315.5,2.263]
[1720024521972,0.03638046,3316.6,3315.5,2.263]
[1720024522380,0.03638046,3316.9,3315.5,2.263]
[1720024522561,0.52244497,3316.8,3315.5,2.790925]
[1720024522758,3.27453851,3316.9,3315.5,2.790925]
[1720024522759,0.03638046,3316.7,3315.5,2.790925]
[1720024523650,0.03638046,3317.4,3315.5,2.790925]
[1720024523891,0.52242824,3317.3,3315.5,2.790925]
[1720024524056,0.5588087,3317.2,3315.6,0.5807135]
[1720024524273,0.52242824,3317.1,3315.6,0.5807135]
[1720024524477,0.03638046,3317.0,3315.6,0.5807135]
[1720024524763,0.03638046,3317.0,3315.5,2.263]
[1720024525005,0.52242259,3316.9,3315.5,2.263]
[1720024525159,0.03638046,3316.8,3315.5,2.263]
[1720024526103,0.03638046,3317.2,3315.5,2.263]
[1720024526274,0.52242138,3317.1,3315.5,2.263]
[1720024526467,0.55880184,3317.0,3315.5,2.790921]
[1720024526694,0.52242138,3316.9,3315.5,2.790921]
[1720024527011,0.52242138,3316.9,3315.5,0.527921]
[1720024527012,0.03638046,3316.8,3315.5,0.527921]
[1720024527223,0.03638046,3316.8,3314.8,3.01672]
[1720024527224,2.65442138,3316.7,3314.8,3.01672]
[1720024527369,3.03638046,3316.6,3315.3,0.55]
[1720024527572,3.55880184,3316.6,3314.9,3.01662]
[1720024527922,1.09159971,3316.5,3315.0,0.603334]
[1720024528098,0.55889999,3316.4,3315.0,0.603334]
[1720024528271,0.03638046,3316.4,3315.0,0.603334]
[1720024528468,0.03638046,3316.4,3315.1,0.6636564]
[1720024529290,0.03638046,3316.4,3315.0,3.01659]
[1720024529892,0.03638046,3316.4,3315.2,3.0164]
[1720024530207,0.03638046,3316.4,3315.3,0.06031374]
[1720024530424,0.03638046,3317.0,3315.3,0.06031374]
[1720024530707,0.52242775,3316.9,3315.3,3.07661374]
[1720024530870,0.55881028,3316.8,3315.4,0.30766137]
[1720024531070,0.03638046,3316.7,3315.5,0.06031292]
[1720024531486,0.03638046,3316.7,3315.4,0.30766137]
[1720024531746,0.03638046,3316.7,3315.5,0.06031296]
[1720024531899,0.03638046,3316.7,3315.5,0.3927091]
[1720024533096,0.03638046,3316.7,3315.6,0.06031254]
[1720024533296,0.03638046,3316.7,3315.6,3.07634254]
[1720024533653,0.03638046,3317.1,3315.7,4.48080781]
[1720024533855,2.132,3317.8,3315.9,6.03136]
[1720024534001,0.03638046,3317.7,3316.0,3.07597166]
[1720024534333,0.55874398,3317.7,3316.0,3.07597166]
[1720024534498,0.79143792,3317.6,3316.1,0.30759717]
[1720024534698,0.55874398,3317.5,3316.2,0.06030165]
[1720024534897,0.52236352,3317.4,3316.2,0.06030165]
[1720024535199,0.52236352,3317.4,3316.3,0.06030165]
[1720024535200,0.03638046,3317.3,3316.3,0.06030165]
[1720024536132,0.03638046,3317.7,3316.3,0.06030165]
[1720024536442,0.73918358,3317.6,3316.3,0.06030165]
[1720024536600,0.52234553,3317.5,3316.5,3.01522]
[1720024536828,6.11110026,3319.1,3316.7,3.01502]
[1720024536829,0.03638046,3318.4,3316.7,3.01502]
[1720024537024,0.52225694,3318.3,3316.9,3.0148]
[1720024537274,0.55861118,3318.2,3317.0,0.06028417]
[1720024537560,0.52223072,3318.1,3317.0,0.06028417]
[1720024537732,0.03638046,3318.0,3317.0,0.06028417]
[1720024537933,0.03638046,3318.0,3317.1,0.60898642]
[1720024538122,0.03638046,3318.5,3317.2,0.06028416]
[1720024538318,0.52222916,3318.4,3317.2,0.06028416]
[1720024538549,7.03445618,3319.5,3317.3,3.01448]
[1720024538550,0.55860962,3318.3,3317.3,3.01448]
[1720024538752,2.132,3319.2,3317.3,3.01448]
[1720024538926,0.77177396,3319.1,3317.4,0.0602776]
[1720024539136,0.5221935,3319.0,3317.4,0.0602776]
[1720024539329,0.55857396,3318.9,3317.3,3.01448]
[1720024539531,0.5221935,3318.8,3317.3,3.01448]
[1720024539739,0.55857396,3318.7,3317.3,3.01448]
[1720024539926,0.5221935,3318.6,3317.3,3.01448]
[1720024540128,0.55857396,3318.5,3317.4,0.514648]
[1720024540362,0.03638046,3318.5,3316.9,3.01484]
[1720024540674,0.52219108,3318.4,3317.0,3.01477]
[1720024540958,0.55858376,3318.3,3317.0,3.01477]
[1720024541167,0.55858376,3318.2,3317.1,0.602961]
[1720024541347,0.5222033,3318.1,3316.6,3.01513]
[1720024541656,0.03638046,3318.0,3316.6,3.01513]
[1720024541845,0.5222033,3317.9,3316.8,3.01494]
[1720024542158,0.03638046,3317.8,3316.5,3.01518]
[1720024542331,0.41820046,3318.5,3316.7,3.01502]
[1720024542657,1.07227038,3318.4,3316.7,3.01502]
[1720024543006,0.55865084,3318.3,3316.7,3.01502]
[1720024543169,0.55865084,3318.2,3316.7,3.01502]
[1720024543475,0.52226862,3318.1,3316.8,0.3867778]
[1720024543618,0.55864908,3318.0,3316.8,0.3867778]
[1720024543819,0.55864908,3318.0,3316.8,3.4017178]
[1720024543820,0.52226921,3317.9,3316.8,3.4017178]
[1720024544174,0.03638046,3318.3,3317.3,3.01448]
[1720024544353,0.03638046,3318.3,3317.4,0.36172684]
[1720024544354,0.52221351,3318.2,3317.4,0.36172684]
[1720024544662,0.03638046,3318.3,3317.4,0.06027884]
[1720024544859,0.03638046,3318.9,3317.4,0.06027884]
[1720024545022,0.52220016,3318.8,3317.4,0.06027884]
[1720024545217,0.55858062,3318.7,3317.4,0.06027884]
[1720024545467,0.52220016,3318.6,3317.4,0.06027884]
[1720024545672,3.0,3319.0,3317.0,3.01475]
[1720024545673,0.55858062,3318.5,3317.0,3.01475]
[1720024545965,0.55858062,3318.5,3316.9,3.01481]
[1720024545966,0.52220016,3318.4,3316.9,3.01484]
[1720024546170,0.03638046,3318.3,3316.9,3.01484]
[1720024546324,0.52220016,3318.2,3316.8,3.4016778]
[1720024547439,0.03638046,3317.9,3316.6,6.882918]
[1720024547641,2.132,3318.4,3316.7,3.01503]
[1720024547978,0.55864723,3318.3,3316.7,3.01503]
[1720024548173,0.52226677,3318.2,3316.7,3.01503]
[1720024548466,0.55864723,3318.1,3316.7,3.01503]
[1720024548638,0.52226677,3318.0,3316.7,3.01503]
[1720024548836,0.55864723,3317.9,3316.7,3.01503]
[1720024549158,0.55864723,3317.9,3316.4,5.35167]
[1720024549159,0.03638046,3317.9,3316.4,5.35167]
[1720024549338,0.52227842,3317.8,3316.4,2.3364]
[1720024549545,0.03638046,3317.7,3316.4,3.0153]
[1720024549851,0.03638046,3317.7,3316.4,3.831577]
[1720024550173,0.03638046,3317.7,3316.4,6.846877]
[1720024550471,0.03638046,3318.1,3316.4,3.831577]
[1720024550663,0.52228277,3318.0,3316.4,3.831577]
[1720024550820,0.55866323,3317.9,3316.4,3.831577]
[1720024551021,0.52228277,3317.8,3316.4,3.831577]
[1720024551244,0.03638046,3317.7,3316.4,3.831577]
[1720024551445,0.52228277,3317.6,3316.4,3.831577]
[1720024551637,0.03638046,3317.5,3316.4,3.831577]
[1720024552038,0.03638046,3318.1,3316.4,3.831577]
[1720024552236,0.03638046,3318.1,3316.5,3.01521]
[1720024552237,0.52231776,3318.0,3316.5,3.01521]
[1720024552464,0.55869822,3317.9,3316.5,3.01521]
[1720024552646,0.52231776,3317.8,3316.5,3.01521]
[1720024552965,0.55869822,3317.7,3316.5,3.01521]
[1720024553165,0.03638046,3317.7,3316.5,3.01521]
[1720024553465,0.52231904,3317.6,3316.5,3.316731]
[1720024553627,0.03638046,3317.5,3316.5,6.331891]
[1720024553827,0.03638046,3318.0,3316.5,6.331891]
[1720024554056,0.03638046,3318.0,3316.6,0.6331891]
[1720024554057,0.52228287,3317.9,3316.6,0.6331891]
[1720024554367,0.95632,3318.1,3316.8,2.2783]
[1720024554368,0.55866333,3317.8,3316.8,2.2783]
[1720024554671,0.03638046,3317.8,3316.9,3.30894634]
[1720024554968,3.03638046,3318.8,3317.1,3.01465]
[1720024555264,8.24310026,3319.1,3317.2,3.01457]
[1720024555265,0.55861499,3318.7,3317.2,3.01457]
[1720024555438,0.52223453,3318.6,3317.3,0.06028197]
[1720024555648,0.55861499,3318.5,3317.3,3.07476197]
[1720024555843,0.52223453,3318.4,3317.3,3.07476197]
[1720024556028,0.55861499,3318.3,3317.3,3.07476197]
[1720024556338,0.03638046,3318.2,3317.3,3.07476197]
[1720024556539,0.03638046,3318.8,3317.3,3.07476197]
[1720024556734,0.55857736,3318.7,3317.3,3.07476197]
[1720024556950,0.5221969,3318.6,3317.3,3.07476197]
[1720024557156,0.55857736,3318.5,3317.3,3.07476197]
[1720024557352,0.55857736,3318.5,3317.4,3.01439]
[1720024557353,0.5221969,3318.4,3317.4,3.01439]
[1720024557523,0.55857736,3318.3,3317.5,0.06027879]
[1720024557730,0.03638046,3318.3,3317.5,0.06027879]
[1720024557956,0.03638046,3318.8,3317.5,0.06027879]
[1720024558163,0.55856262,3318.7,3317.5,0.06027879]
[1720024558374,0.52218216,3318.6,3317.5,0.06027879]
[1720024558544,0.55856262,3318.5,3317.5,0.06027879]
[1720024558745,0.52218216,3318.4,3317.5,0.06027879]
[1720024558948,0.03638046,3318.3,3317.5,0.06027879]
[1720024559259,0.52218216,3318.2,3317.5,0.06027879]
[1720024559584,0.3595631,3318.8,3317.3,3.01448]
[1720024559762,0.52219151,3318.7,3317.2,3.01457]
[1720024559940,0.3595631,3318.8,3317.2,3.01457]
[1720024559941,0.52219151,3318.6,3317.2,3.01457]
[1720024560140,0.52219151,3318.5,3317.3,3.01449]
[1720024560359,0.52219151,3318.7,3317.1,3.55266788]
[1720024560537,0.03638046,3318.4,3317.1,3.01462]
[1720024560739,0.52219151,3318.3,3317.1,3.01462]
[1720024560937,0.03638046,3318.2,3317.1,3.01462]
[1720024561175,0.52219151,3318.1,3317.1,3.01462]
[1720024561481,0.03638046,3318.0,3317.1,3.01462]
[1720024561651,0.03638046,3318.0,3317.1,3.01461]
[1720024561847,0.03638046,3318.7,3317.2,3.01453]
[1720024562042,0.55857805,3318.7,3317.2,3.01453]
[1720024562237,0.52219759,3318.6,3317.2,3.01453]
[1720024562439,0.55857805,3318.5,3317.0,2.132]
[1720024562638,0.52219759,3318.4,3317.0,2.132]
[1720024562877,0.03638046,3318.3,3317.2,3.01458]
[1720024563065,0.52219759,3318.2,3317.2,3.01458]
[1720024563382,0.03638046,3318.1,3317.2,3.01458]
[1720024563586,0.52219759,3318.0,3317.2,3.01458]
[1720024563940,0.52219759,3318.6,3317.2,3.01458]
[1720024564171,0.03638046,3318.5,3317.2,3.01458]
[1720024564481,0.03638046,3318.5,3317.2,3.90730269]
[1720024564482,0.52219759,3318.4,3317.2,3.90730269]
[1720024564636,0.55857805,3318.3,3317.2,3.90730269]
[1720024564834,0.55857805,3318.2,3317.2,3.90730269]
[1720024565064,0.55857805,3318.2,3317.3,0.39073027]
[1720024565283,0.03638046,3318.2,3317.3,0.45101186]
[1720024565476,0.52219498,3318.1,3317.3,0.45101186]
[1720024565638,0.52218668,3318.0,3317.3,0.45101186]
[1720024565845,0.52218668,3317.9,3317.3,0.06028159]
[1720024566143,0.03638046,3318.7,3317.3,3.07477159]
[1720024566362,0.522187,3318.6,3317.2,0.89272269]
[1720024566690,0.522187,3318.6,3317.1,3.176]
[1720024566691,0.522187,3318.5,3317.7,3.01413]
[1720024566992,0.03638046,3319.0,3317.5,2.3901]
[1720024566993,0.522187,3318.4,3318.0,3.01381]
[1720024567157,0.03638046,3319.6,3318.1,3.07397675]
[1720024567349,0.52206366,3319.5,3318.1,3.07397675]
[1720024567685,0.55844412,3319.4,3318.1,3.07397675]
[1720024567847,0.52206366,3319.3,3318.1,3.07397675]
[1720024568047,0.55844412,3319.2,3318.1,3.07397675]
[1720024568272,0.52203542,3319.1,3318.1,3.07397675]
[1720024568459,0.55841588,3319.0,3318.1,3.68275542]
[1720024568662,0.52203542,3318.9,3318.2,3.01359]
[1720024568878,0.03638046,3319.5,3318.4,3.01349]
[1720024569176,2.132,3320.3,3318.5,0.06026078]
[1720024569177,0.5220209,3319.4,3318.5,0.06026078]
[1720024569398,0.55840136,3319.3,3318.5,0.06026078]
[1720024569597,0.55840136,3319.2,3318.5,0.06026078]
[1720024569880,0.5220209,3319.1,3318.5,0.06026078]
[1720024570084,3.5220209,3320.0,3318.5,0.06026078]
[1720024570249,1.1274415,3319.9,3318.5,0.06026078]
[1720024570449,0.5220209,3319.8,3318.5,0.06026078]
[1720024570764,0.55840136,3319.7,3318.4,3.01349]
[1720024570968,0.5220209,3319.6,3317.8,3.014]
[1720024571173,0.5220209,3319.6,3317.5,2.3901]
[1720024571174,0.58638046,3319.5,3317.9,0.3014]
[1720024571365,0.58638046,3319.5,3317.5,4.5221]
[1720024571366,0.52207248,3319.4,3317.8,3.014]
[1720024571687,0.55845294,3319.3,3317.8,3.014]
[1720024571994,0.55845294,3319.2,3317.8,3.014]